lending/lending_fUSD_20260328
["ID","MTS","AMOUNT","RATE_DAILY","PERIOD"]
[418968404,1774687846067,-215.95348715,0.00013617,2]
[418968405,1774687846078,-500.0,0.00013617,2]
[418968406,1774687846088,-500.0,0.00013617,2]
[418968407,1774687846097,-409.07129,0.00013617,2]
[418968408,1774687846107,-484.16685358,0.00013617,2]
[418968409,1774687846117,-500.0,0.00013617,2]
[418968410,1774687846126,-500.0,0.00013617,2]
[418968411,1774687846137,-500.0,0.00013617,2]
[418968412,1774687846148,-500.0,0.00013617,2]
[418968413,1774687846157,-601.76734897,0.00013617,2]
[418968414,1774687846167,-500.0,0.00013617,2]
[418968415,1774687846179,-500.0,0.00013617,2]
[418968416,1774687846188,-500.0,0.00013617,2]
[418968417,1774687846198,-500.0,0.00013617,2]
[418968418,1774687846207,-500.0,0.00013617,2]
[418968419,1774687846216,-500.0,0.00013617,2]
[418968420,1774687846227,-500.0,0.00013617,2]
[418968421,1774687846238,-500.0,0.00013617,2]
[418968422,1774687846247,-500.0,0.00013617,2]
[418968423,1774687846256,-500.0,0.00013617,2]
[418968424,1774687846267,-500.0,0.00013617,2]
[418968425,1774687846276,-500.0,0.00013617,2]
[418968426,1774687846286,-500.0,0.00013617,2]
[418968427,1774687846296,-500.0,0.00013617,2]
[418968428,1774687846305,-500.0,0.00013617,2]
[418968429,1774687846316,-516.0119567,0.00013617,2]
[418968430,1774687846326,-500.0,0.00013617,2]
[418968431,1774687846335,-500.0,0.00013617,2]
[418968432,1774687846345,-500.0,0.00013617,2]
[418968433,1774687846355,-500.0,0.00013617,2]
[418968434,1774687846364,-500.0,0.00013617,2]
[418968435,1774687846374,-500.0,0.00013617,2]
[418968436,1774687846383,-500.0,0.00013617,2]
[418968437,1774687846393,-358.83452234,0.00013617,2]
[418968438,1774687846402,-500.0,0.00013617,2]
[418968439,1774687846412,-500.0,0.00013617,2]
[418968440,1774687846422,-500.0,0.00013617,2]
[418968441,1774687846432,-500.0,0.00013617,2]
[418968442,1774687846442,-500.0,0.00013617,2]
[418968443,1774687846451,-500.0,0.00013617,2]
[418968444,1774687846461,-500.0,0.00013617,2]
[418968445,1774687846470,-449.10710925,0.00013617,2]
[418968446,1774687846479,-500.0,0.00013617,2]
[418968447,1774687846490,-500.0,0.00013617,2]
[418968448,1774687846500,-500.0,0.00013617,2]
[418968449,1774687846510,-500.0,0.00013617,2]
[418968450,1774687846519,-500.0,0.00013617,2]
[418968451,1774687846529,-500.0,0.00013617,2]
[418968452,1774687846539,-500.0,0.00013617,2]
[418968453,1774687846548,-500.0,0.00013617,2]
[418968454,1774687846558,-500.0,0.00013617,2]
[418968455,1774687846568,-500.0,0.00013617,2]
[418968456,1774687846580,-500.0,0.00013617,2]
[418968457,1774687846592,-500.0,0.00013617,2]
[418968458,1774687846603,-500.0,0.00013617,2]
[418968459,1774687846614,-500.0,0.00013617,2]
[418968460,1774687846625,-500.0,0.00013617,2]
[418968461,1774687846635,-500.0,0.00013617,2]
[418968462,1774687846644,-500.0,0.00013617,2]
[418968463,1774687846655,-164.90742817,0.00013617,2]
[418968464,1774687846665,-1371.46408441,0.00013617,2]
[418968465,1774687846676,-1371.46408441,0.00013617,2]
[418968466,1774687846686,-1371.46408441,0.00013617,2]
[418968467,1774687846696,-1371.46408441,0.00013617,2]
[418968468,1774687846705,-1371.46408441,0.00013617,2]
[418968470,1774687846715,-1371.46408441,0.00013617,2]
[418968471,1774687846725,-1371.46408441,0.00013617,2]
[418968472,1774687846734,-1371.46408441,0.00013617,2]
[418968473,1774687846744,-1371.46408441,0.00013617,2]
[418968474,1774687846753,-1371.46408441,0.00013617,2]
[418968475,1774687846762,-1371.46408441,0.00013617,2]
[418968476,1774687846772,-1371.46408441,0.00013617,2]
[418968477,1774687846781,-1371.46408441,0.00013617,2]
[418968478,1774687846791,-961.15801916,0.00013617,2]
[418968479,1774687847068,-410.30606525,0.00013617,2]
[418968480,1774687847077,-1371.46408441,0.00013617,2]
[418968481,1774687847087,-1049.37984162,0.00013617,2]
[418968482,1774687847099,-322.08424279,0.00013617,2]
[418968483,1774687847108,-866.92375721,0.00013617,2]
[418968484,1774688031114,-609.6,0.00012022,2]
[418968485,1774688079377,487.8,0.00011,2]
[418968486,1774688079889,463.23,0.00012062,2]
[418968487,1774688332250,-9048.98,0.00012631,2]
[418968488,1774688332387,-10000.01,0.00012631,2]
[418968489,1774688332505,-1785.14,0.00012631,2]
[418968490,1774688332547,-1153.33,0.00012675,2]
[418968491,1774688332584,-1200.0,0.00012734,2]
[418968492,1774688332628,-273.0,0.00012734,2]
[418968493,1774688332666,-300.0,0.00012734,2]
[418968494,1774688333114,-577.07,0.00012735,2]
[418968495,1774688333160,-10000.01,0.00012735,2]
[418968496,1774688335383,-10000.01,0.00012735,2]
[418968497,1774688338514,-10000.01,0.00012735,2]
[418968498,1774688338705,-4417.88,0.00012735,2]
[418968499,1774688338735,-200.0,0.00012745,2]
[418968500,1774688386195,800.0,0.00012336,2]
[418968501,1774688405522,155.0,0.00012745,2]
[418968502,1774688450131,337.78,0.00011858,2]
[418968503,1774688455014,1947.65,0.00012474,2]
[418968504,1774688466720,157.0,0.00012745,2]
[418968505,1774688576079,2000.0,0.00012401,2]
[418968506,1774688589226,294.68296071,0.000127,2]
[418968507,1774688612493,166.66,0.00011797,2]
[418968508,1774688612687,166.66,0.00012046,2]
[418968509,1774688612878,166.66,0.00012294,2]
[418968510,1774688613070,166.66,0.00012542,2]
[418968511,1774688652795,-166.66,0.00012791,2]
[418968512,1774688652834,-2718.87,0.000128,2]
[418968513,1774688652872,-307.0,0.000128,2]
[418968514,1774688652912,-1200.0,0.0001283,2]
[418968515,1774688652949,-300.0,0.0001283,2]
[418968516,1774688652979,-150.0,0.0001283,2]
[418968517,1774688653580,-3956.20703929,0.00012831,2]
[418968518,1774688653595,-9752.30296071,0.00012831,2]
[418968519,1774688653605,-247.70703929,0.00012831,2]
[418968520,1774688653622,-10000.01,0.00012831,2]
[418968521,1774688655856,-791.37296071,0.00012831,2]
[418968522,1774688655884,-3306.91,0.00012831,2]
[418968523,1774688656153,-1803.44407858,0.00012873,2]
[418968524,1774688658860,-1988.27092142,0.00012873,2]
[418968525,1774688658888,-245.408,0.00012873,2]
[418968526,1774688658915,-210.88,0.00012873,2]
[418968527,1774688658943,-1001.76089238,0.00012879,2]
[418968528,1774688707384,150.0,0.00012745,2]
[418968529,1774688857007,603.51787573,8e-05,2]
[418968538,1774688966305,163.85,0.00010264,2]
[418968539,1774689000986,733.16,7.459e-05,2]
[418968546,1774689005979,9266.85,9.5e-05,3]
[418968547,1774689006006,1135.27977915,9.5e-05,3]
[418968548,1774689006029,1135.27977915,9.5e-05,3]
[418968549,1774689006053,1135.27977915,9.5e-05,3]
[418968550,1774689006075,1135.27977915,9.5e-05,3]
[418968551,1774689006097,1135.27977915,9.5e-05,3]
[418968552,1774689006120,1135.27977915,9.5e-05,3]
[418968553,1774689006144,1135.27977915,9.5e-05,3]
[418968554,1774689006170,1135.27977915,9.5e-05,3]
[418968555,1774689006193,1135.27977915,9.5e-05,3]
[418968556,1774689006217,1135.27977915,9.5e-05,3]
[418968560,1774689018845,-9082.64212427,9.5e-05,3]
[418968571,1774689031967,-881.86849656,9.5e-05,3]
[418968572,1774689032020,-789.06159669,9.5e-05,3]
[418968573,1774689032076,-4447.10351561,9.5e-05,3]
[418968574,1774689032121,-21.91249436,9.5e-05,3]
[418968575,1774689032131,-150.0,0.00012745,2]
[418968576,1774689032140,-2100.0,0.000128,4]
[418968577,1774689032150,-1200.0,0.00012879,2]
[418968578,1774689032159,-14464.15,0.0001288,2]
[418968579,1774689032170,-150.0,0.00012895,2]
[418968580,1774689032180,-10379.76,0.00012896,2]
[418968581,1774689032189,-7506.72,0.00012896,2]
[418968582,1774689032199,-4200.0,0.000129,4]
[418968583,1774689032208,-159.0980215,0.00013007,2]
[418968584,1774689032218,-1903.42,0.00013007,2]
[418968585,1774689032229,-166.66,0.00013039,2]
[418968586,1774689032239,-532.0,0.00013111,2]
[418968587,1774689032250,-411.4770948,0.0001322,2]
[418968588,1774689032259,-1000.0,0.00013279,2]
[418968589,1774689032269,-500.0,0.00013318,2]
[418968590,1774689032278,-500.0,0.00013318,2]
[418968592,1774689032288,-500.0,0.00013318,2]
[418968594,1774689032298,-500.0,0.00013318,2]
[418968595,1774689032307,-179.70344844,0.00013318,2]
[418968597,1774689032317,-911.15988443,0.00013318,2]
[418968598,1774689032326,-165.82076834,0.00013318,2]
[418968599,1774689032335,-911.15988443,0.00013318,2]
[418968601,1774689032344,-500.0,0.00013318,2]
[418968602,1774689032354,-198.24572461,0.00013318,2]
[418968603,1774689032363,-500.0,0.00013318,2]
[418968604,1774689032372,-500.0,0.00013318,2]
[418968605,1774689032382,-911.15988443,0.00013318,2]
[418968606,1774689032391,-325.7491073,0.00013318,2]
[418968607,1774689032400,-500.0,0.00013318,2]
[418968608,1774689032411,-324.58643734,0.00013318,2]
[418968609,1774689032420,-911.15988443,0.00013318,2]
[418968610,1774689032429,-911.15988443,0.00013318,2]
[418968611,1774689032439,-500.0,0.00013319,2]
[418968612,1774689032448,-1177.3221,0.0001332,2]
[418968613,1774689032458,-60683.7016,0.0001332,2]
[418968614,1774689032467,-6767.8194,0.0001332,2]
[418968615,1774689032477,-157.15288598,0.00013325,2]
[418968616,1774689032486,-166.6371911,0.00013325,2]
[418968617,1774689032495,-1166.22557044,0.00013325,2]
[418968618,1774689032504,-167.5141308,0.00013373,2]
[418968619,1774689032514,-502.12815778,0.00013373,2]
[418968620,1774689032523,-451.07975321,0.00013373,2]
[418968621,1774689032533,-500.0,0.00013373,2]
[418968622,1774689032542,-500.0,0.00013373,2]
[418968623,1774689032551,-260.36077702,0.00013373,2]
[418968624,1774689032560,-500.62783858,0.00013373,2]
[418968625,1774689032570,-164.27795554,0.00013373,2]
[418968626,1774689032579,-501.23124429,0.00013373,2]
[418968627,1774689032589,-500.0,0.00013373,2]
[418968628,1774689032599,-245.41415789,0.00013373,2]
[418968629,1774689032608,-314.67574079,0.00013373,2]
[418968630,1774689032618,-500.0,0.00013373,2]
[418968631,1774689032628,-8882.6885148,0.00013389,2]
[418968632,1774689032637,-284.94410162,0.00013389,2]
[418968633,1774689032648,-24030.67,0.00013397,2]
[418968634,1774689032657,-195.78200294,0.00013415,2]
[418968635,1774689032666,-633.48775828,0.00013417,2]
[418968636,1774689032676,-527.26145144,0.00013417,2]
[418968637,1774689032686,-163.93651489,0.00013417,2]
[418968638,1774689032695,-524.17339372,0.00013417,2]
[418968639,1774689032704,-152.51365651,0.00013417,2]
[418968640,1774689032714,-155.914,0.00013422,2]
[418968641,1774689032723,-500.0,0.00013424,2]
[418968642,1774689032732,-199.07561315,0.00013424,2]
[418968643,1774689032742,-500.0,0.00013424,2]
[418968644,1774689032751,-300.18692996,0.00013424,2]
[418968645,1774689032760,-500.0,0.00013424,2]
[418968646,1774689032770,-500.0,0.00013424,2]
[418968647,1774689032779,-600.9388592,0.00013424,2]
[418968648,1774689032789,-500.0,0.00013424,2]
[418968649,1774689032798,-3240.0,0.00013425,2]
[418968650,1774689032807,-1230.0,0.00013425,5]
[418968651,1774689032816,-28955.14790247,0.00013425,2]
[418968652,1774689032861,-14989.24288071,0.00013425,2]
[418968655,1774689037959,-354.425,0.00013318,2]
[418968656,1774689038013,-145.575,0.00013318,2]
[418968657,1774689038023,-911.15988443,0.00013318,2]
[418968658,1774689038032,-500.0,0.00013318,2]
[418968659,1774689038041,-911.15988443,0.00013318,2]
[418968660,1774689038051,-500.0,0.00013318,2]
[418968661,1774689038060,-911.15988443,0.00013318,2]
[418968662,1774689038069,-371.27220921,0.00013318,2]
[418968663,1774689038078,-911.15988443,0.00013318,2]
[418968664,1774689038087,-911.15988443,0.00013318,2]
[418968665,1774689038097,-500.0,0.00013318,2]
[418968666,1774689038108,-911.15988443,0.00013318,2]
[418968667,1774689038119,-911.15988443,0.00013318,2]
[418968668,1774689038128,-911.15988443,0.00013318,2]
[418968669,1774689038138,-911.15988443,0.00013318,2]
[418968670,1774689038147,-911.15988443,0.00013318,2]
[418968671,1774689038157,-911.15988443,0.00013318,2]
[418968672,1774689038166,-911.15988443,0.00013318,2]
[418968673,1774689038176,-911.15988443,0.00013318,2]
[418968674,1774689038185,-911.15988443,0.00013318,2]
[418968675,1774689038194,-911.15988443,0.00013318,2]
[418968676,1774689038203,-911.15988443,0.00013318,2]
[418968677,1774689038212,-911.15988443,0.00013318,2]
[418968678,1774689038221,-911.15988443,0.00013318,2]
[418968679,1774689038230,-911.15988443,0.00013318,2]
[418968680,1774689038240,-911.15988443,0.00013318,2]
[418968681,1774689038249,-911.15988443,0.00013318,2]
[418968682,1774689038258,-911.15988443,0.00013318,2]
[418968683,1774689038267,-911.15988443,0.00013318,2]
[418968684,1774689038277,-911.15988443,0.00013318,2]
[418968685,1774689038286,-911.15988443,0.00013318,2]
[418968686,1774689038295,-911.15988443,0.00013318,2]
[418968687,1774689038304,-911.15988443,0.00013318,2]
[418968688,1774689038314,-911.15988443,0.00013318,2]
[418968689,1774689038323,-911.15988443,0.00013318,2]
[418968690,1774689038332,-911.15988443,0.00013318,2]
[418968692,1774689038341,-911.15988443,0.00013318,2]
[418968693,1774689038350,-911.15988443,0.00013318,2]
[418968694,1774689038359,-911.15988443,0.00013318,2]
[418968695,1774689038368,-911.15988443,0.00013318,2]
[418968696,1774689038377,-911.15988443,0.00013318,2]
[418968697,1774689038386,-911.15988443,0.00013318,2]
[418968698,1774689038395,-911.15988443,0.00013318,2]
[418968699,1774689038404,-911.15988443,0.00013318,2]
[418968700,1774689038414,-911.15988443,0.00013318,2]
[418968701,1774689038424,-911.15988443,0.00013318,2]
[418968702,1774689038433,-911.15988443,0.00013318,2]
[418968703,1774689038442,-911.15988443,0.00013318,2]
[418968704,1774689038452,-911.15988443,0.00013318,2]
[418968705,1774689038461,-911.15988443,0.00013318,2]
[418968706,1774689038471,-911.15988443,0.00013318,2]
[418968707,1774689038480,-911.15988443,0.00013318,2]
[418968708,1774689038490,-911.15988443,0.00013318,2]
[418968709,1774689038500,-911.15988443,0.00013318,2]
[418968710,1774689038510,-911.15988443,0.00013318,2]
[418968711,1774689038519,-911.15988443,0.00013318,2]
[418968712,1774689038529,-1456055.60921682,0.00013425,2]
[418968714,1774689038538,-250.0,0.00013425,2]
[418968716,1774689038547,-250.0,0.00013425,2]
[418968718,1774689038557,-250.0,0.00013425,2]
[418968720,1774689038566,-250.0,0.00013425,2]
[418968722,1774689038575,-250.0,0.00013425,2]
[418968724,1774689038585,-250.0,0.00013425,2]
[418968726,1774689038594,-250.0,0.00013425,2]
[418968728,1774689038603,-250.0,0.00013425,2]
[418968730,1774689038612,-250.0,0.00013425,2]
[418968732,1774689038621,-250.0,0.00013425,2]
[418968734,1774689038630,-250.0,0.00013425,2]
[418968736,1774689038640,-250.0,0.00013425,2]
[418968737,1774689038649,-220.268761,0.00013425,2]
[418968739,1774689038660,-151.0,0.00013425,2]
[418968740,1774689038670,-151.0,0.00013425,2]
[418968741,1774689038679,-151.0,0.00013425,2]
[418968742,1774689038690,-151.0,0.00013425,2]
[418968743,1774689038699,-151.0,0.00013425,2]
[418968744,1774689038708,-151.0,0.00013425,2]
[418968745,1774689038718,-151.0,0.00013425,2]
[418968746,1774689038727,-151.0,0.00013425,2]
[418968747,1774689038736,-167.62270379,0.00013473,2]
[418968748,1774689038744,-1080.0,0.00013517,2]
[418968749,1774689038754,-411.47709478,0.00013518,2]
[418968750,1774689038763,-345989.44745833,0.00013522,2]
[418968751,1774689038806,-2187.01023348,0.00013522,2]
[418968752,1774689038829,-518.35918727,0.00013522,2]
[418968753,1774689038840,-766.39805676,0.00013522,2]
[418968754,1774689038851,-279.52716,0.00013522,2]
[418968757,1774689043089,-700.774621,0.00013522,2]
[418968758,1774689043298,-1131.9414888,0.00013522,2]
[418968759,1774689043458,-16024.49123428,0.00013522,2]
[418968760,1774689043470,-1719.5324,0.00013522,2]
[418968766,1774689046335,-5878.40577931,0.00013522,2]
[418968767,1774689046346,-2243.137,0.00013522,2]
[418968832,1774689062937,901.73,9.201e-05,2]
[418968833,1774689063461,587.61,9.456e-05,2]
[418968834,1774689063973,890.0,9.797e-05,2]
[418968835,1774689064489,1024.76,9.96e-05,2]
[418968836,1774689064999,1200.0,0.00010126,2]
[418968837,1774689065512,700.0,0.00010368,2]
[418968838,1774689066026,530.33,0.00010745,2]
[418968839,1774689125489,-407.0,0.00010754,2]
[418968840,1774689125518,-1218.31,0.00010924,2]
[418968841,1774689125547,-407.0,0.00011337,3]
[418968842,1774689125579,-407.0,0.0001193,3]
[418968843,1774689128370,-250.0,0.0001183,2]
[418968844,1774689131425,-498.12,0.00010333,2]
[418968845,1774689131455,-160.0,0.00010754,2]
[418968846,1774689131485,-337.63,0.00011402,2]
[418968847,1774689134429,-0.01,0.00012017,2]
[418968848,1774689137482,-0.02,0.00012017,2]
[418968850,1774689252855,-4999.97,0.00012017,2]
[418968851,1774689254287,0.07,0.00011717,2]
[418968852,1774689254311,859.71,0.00011717,2]
[418968855,1774689317668,385.78,0.00010946,2]
[418968856,1774689318199,1000.0,0.000114,2]
[418968857,1774689318718,680.47,0.00011627,2]
[418968858,1774689319243,526.15,0.00011851,2]
[418968859,1774689383220,500.0,0.00011453,2]
[418968861,1774689412917,200.0,0.000114,2]
[418968862,1774689507033,1100.0,0.00011108,2]
[418968863,1774689519377,355.61,0.00011507,2]
[418968864,1774689569639,351.26,0.00011214,2]
[418968865,1774689570151,584.98,0.00011478,2]
[418968866,1774689570671,700.0,0.00011815,2]
[418968868,1774689579587,-164.0,0.00012017,2]
[418968869,1774689579616,-346.0,0.00012017,2]
[418968870,1774689579648,-160.0,0.00012017,2]
[418968871,1774689606117,2489.83,0.00011982,2]
[418968872,1774689607268,328.0,0.00012017,2]
[418968873,1774689635630,373.37,0.00011763,2]
[418968874,1774689666840,312.0,0.00012017,2]
[418968879,1774689726522,156.81,0.00012017,2]
[418968880,1774689726546,139.19,0.00012017,2]
[418968881,1774689760872,600.0,0.00011591,2]
[418968882,1774689784966,281.0,0.00012017,2]
[418968883,1774689791895,3979.82,0.00011823,2]
[418968884,1774689791917,313.43,0.00011823,2]
[418968885,1774689826307,900.0,0.00011256,2]
[418968886,1774689847161,267.0,0.00012017,2]
[418968887,1774689853874,-382.98448656,0.00012042,2]
[418968888,1774689888951,1280.0,0.00010917,2]
[418968889,1774689889468,950.0,0.00011143,2]
[418968890,1774689889988,883.02,0.00011599,2]
[418968891,1774689890516,1230.0,0.00011728,2]
[418968892,1774689891004,900.0,0.00012019,2]
[418968893,1774689911667,254.0,0.00012042,2]
[418968894,1774689911740,167.0,0.00012042,2]
[418968895,1774689915686,154.16,0.00011599,2]
[418968896,1774689917789,255.32299104,0.00011959,2]
[418968897,1774689954962,900.0,0.0001157,2]
[418968898,1774689967790,241.0,0.00012042,2]
[418968900,1774690017675,800.0,0.00011638,2]
[418968901,1774690027207,229.0,0.00012042,2]
[418968902,1774690028111,-850.0,0.00012044,2]
[418968903,1774690028141,-3300.01,0.00012048,2]
[418968904,1774690028316,-1699.99,0.00012048,2]
[418968905,1774690028346,-300.0,0.0001205,2]
[418968906,1774690028376,-300.0,0.0001205,2]
[418968907,1774690028404,-400.03,0.00012051,2]
[418968908,1774690028608,-4599.97,0.00012051,2]
[418968909,1774690028636,-294.0,0.00012059,2]
[418968910,1774690031076,-930.0,0.00012059,2]
[418968911,1774690031104,-255.32299103,0.0001208,2]
[418968912,1774690031136,-1200.0,0.00012141,2]
[418968913,1774690031169,-800.0,0.00012141,2]
[418968914,1774690031199,-800.0,0.00012142,2]
[418968915,1774690031226,-255.32299103,0.00012201,2]
[418968916,1774690031256,-300.0,0.0001222,2]
[418968917,1774690031379,-1800.0,0.00012221,2]
[418968918,1774690031620,-229.0,0.00012258,3]
[418968919,1774690031784,-150.0,0.000123,2]
[418968920,1774690031820,-267.62,0.00012301,2]
[418968921,1774690031849,-500.0,0.00012301,2]
[418968922,1774690031877,-500.0,0.00012301,2]
[418968923,1774690031908,-778.99176262,0.00012301,2]
[418968924,1774690031935,-441.77730759,0.00012301,2]
[418968925,1774690031963,-165.23185958,0.00012301,2]
[418968926,1774690034158,-334.76814042,0.00012301,2]
[418968927,1774690034190,-778.99176262,0.00012301,2]
[418968928,1774690034223,-778.99176262,0.00012301,2]
[418968929,1774690034252,-371.27220921,0.00012301,2]
[418968930,1774690034285,-778.99176262,0.00012301,2]
[418968931,1774690034317,-778.99176262,0.00012301,2]
[418968932,1774690034348,-778.99176262,0.00012301,2]
[418968933,1774690034380,-19.01991192,0.00012301,2]
[418968934,1774690034557,-759.9718507,0.00012301,2]
[418968935,1774690034590,-778.99176262,0.00012301,2]
[418968936,1774690034623,-778.99176262,0.00012301,2]
[418968937,1774690034656,-778.99176262,0.00012301,2]
[418968938,1774690034687,-778.99176262,0.00012301,2]
[418968939,1774690034719,-778.99176262,0.00012301,2]
[418968940,1774690037087,-778.99176262,0.00012301,2]
[418968941,1774690037118,-778.99176262,0.00012301,2]
[418968942,1774690037150,-778.99176262,0.00012301,2]
[418968943,1774690037184,-778.99176262,0.00012301,2]
[418968944,1774690037217,-778.99176262,0.00012301,2]
[418968945,1774690037248,-778.99176262,0.00012301,2]
[418968946,1774690037419,-778.99176262,0.00012301,2]
[418968947,1774690037453,-778.99176262,0.00012301,2]
[418968948,1774690037655,-778.99176262,0.00012301,2]
[418968949,1774690037691,-778.99176262,0.00012301,2]
[418968950,1774690037724,-778.99176262,0.00012301,2]
[418968951,1774690037757,-778.99176262,0.00012301,2]
[418968952,1774690063173,500.0,0.00011944,2]
[418968953,1774690081899,2000.0,0.00011515,2]
[418968954,1774690082405,1000.0,0.00011858,2]
[418968955,1774690086727,214.0,0.00012017,2]
[418968956,1774690146596,204.0,0.00012017,2]
[418968957,1774690148035,946.34,0.00011703,2]
[418968958,1774690207524,166.0,0.00012017,2]
[418968959,1774690210997,193.0,0.00012017,2]
[418968963,1774690219005,500.0,0.00011801,2]
[418968967,1774690232144,-508.61,0.00012187,2]
[418968968,1774690232358,-2554.68,0.00012187,2]
[418968969,1774690232367,-296.0,0.00012187,2]
[418968970,1774690232377,-193.0,0.00012258,3]
[418968971,1774690232387,-195.0,0.00012301,2]
[418968972,1774690232396,-1200.0,0.00012301,2]
[418968973,1774690232406,-1200.0,0.00012301,2]
[418968975,1774690232416,-300.0,0.00012301,2]
[418968977,1774690232426,-300.0,0.00012301,2]
[418968979,1774690232435,-300.0,0.00012301,2]
[418968981,1774690232445,-150.0,0.00012301,2]
[418968983,1774690232455,-762.51114973,0.00012301,2]
[418968985,1774690232464,-762.51114973,0.00012301,2]
[418968987,1774690232473,-762.51114973,0.00012301,2]
[418968989,1774690232483,-762.51114973,0.00012301,2]
[418968991,1774690232492,-762.51114973,0.00012301,2]
[418969009,1774690232649,-762.51114973,0.00012301,2]
[418969011,1774690232659,-762.51114973,0.00012301,2]
[418969013,1774690232668,-762.51114973,0.00012301,2]
[418969015,1774690232677,-762.51114973,0.00012301,2]
[418969017,1774690232686,-762.51114973,0.00012301,2]
[418969019,1774690232697,-762.51114973,0.00012301,2]
[418969021,1774690232706,-762.51114973,0.00012301,2]
[418969022,1774690232715,-762.51114973,0.00012301,2]
[418969025,1774690232725,-762.51114973,0.00012301,2]
[418969027,1774690232735,-762.51114973,0.00012301,2]
[418969029,1774690232744,-762.51114973,0.00012301,2]
[418969030,1774690232754,-762.51114973,0.00012301,2]
[418969031,1774690232763,-762.51114973,0.00012301,2]
[418969032,1774690232772,-762.51114973,0.00012301,2]
[418969033,1774690232782,-762.51114973,0.00012301,2]
[418969034,1774690232792,-762.51114973,0.00012301,2]
[418969035,1774690232801,-762.51114973,0.00012301,2]
[418969036,1774690232810,-762.51114973,0.00012301,2]
[418969037,1774690232819,-762.51114973,0.00012301,2]
[418969038,1774690232830,-762.51114973,0.00012301,2]
[418969039,1774690232840,-762.51114973,0.00012301,2]
[418969040,1774690232850,-762.51114973,0.00012301,2]
[418969041,1774690232859,-762.51114973,0.00012301,2]
[418969042,1774690232868,-762.51114973,0.00012301,2]
[418969043,1774690232878,-762.51114973,0.00012301,2]
[418969044,1774690232887,-762.51114973,0.00012301,2]
[418969045,1774690232896,-762.51114973,0.00012301,2]
[418969046,1774690232905,-762.51114973,0.00012301,2]
[418969047,1774690232915,-762.51114973,0.00012301,2]
[418969048,1774690232924,-762.51114973,0.00012301,2]
[418969049,1774690232933,-762.51114973,0.00012301,2]
[418969050,1774690232942,-762.51114973,0.00012301,2]
[418969051,1774690232952,-762.51114973,0.00012301,2]
[418969052,1774690232961,-762.51114973,0.00012301,2]
[418969053,1774690232970,-762.51114973,0.00012301,2]
[418969054,1774690232979,-762.51114973,0.00012301,2]
[418969055,1774690232988,-762.51114973,0.00012301,2]
[418969056,1774690232998,-762.51114973,0.00012301,2]
[418969057,1774690233007,-762.51114973,0.00012301,2]
[418969058,1774690233016,-762.51114973,0.00012301,2]
[418969059,1774690233025,-501.86070028,0.00012301,2]
[418969060,1774690233034,-753.21223327,0.00012301,2]
[418969061,1774690233042,-753.21223327,0.00012301,2]
[418969062,1774690233051,-753.21223327,0.00012301,2]
[418969063,1774690233060,-753.21223327,0.00012301,2]
[418969064,1774690233069,-753.21223327,0.00012301,2]
[418969065,1774690233078,-753.21223327,0.00012301,2]
[418969066,1774690233087,-753.21223327,0.00012301,2]
[418969067,1774690233096,-753.21223327,0.00012301,2]
[418969068,1774690233106,-753.21223327,0.00012301,2]
[418969069,1774690233115,-753.21223327,0.00012301,2]
[418969070,1774690233124,-753.21223327,0.00012301,2]
[418969071,1774690233133,-753.21223327,0.00012301,2]
[418969072,1774690233142,-753.21223327,0.00012301,2]
[418969073,1774690233151,-753.21223327,0.00012301,2]
[418969074,1774690233160,-753.21223327,0.00012301,2]